bitfinex/quotes_ETHUSD_20260313
["timestamp","ask_amount","ask_price","bid_price","bid_amount"]
[1773422698526,2.91109727,2134.9,2134.5,0.0011]
[1773422698933,2.80077515,2134.8,2134.5,0.0011]
[1773422699308,2.91109727,2134.9,2134.5,0.0011]
[1773422699935,1.17106988,2134.8,2134.5,0.0011]
[1773422700922,4.68352784,2135.2,2134.5,3.17558592]
[1773422701219,2.85653455,2135.1,2134.5,3.17558592]
[1773422701830,1.17096018,2135.0,2134.5,3.17558592]
[1773422702428,1.17096018,2135.0,2134.5,0.0011]
[1773422702830,0.05855075,2134.9,2134.5,0.0011]
[1773422703032,0.05855075,2134.9,2134.5,1.17233283]
[1773422703244,0.05855075,2134.9,2134.5,0.0011]
[1773422703443,0.05855075,2134.9,2134.5,1.5861]
[1773422703917,0.05855075,2134.9,2134.5,2.75733187]
[1773422704231,0.05855075,2134.9,2134.5,5.93181779]
[1773422704410,0.058548,2135.0,2134.6,0.02753475]
[1773422704611,2.91209727,2135.3,2134.6,3.2213331]
[1773422704818,1.17180884,2135.3,2134.7,3.17558592]
[1773422705048,0.031031,2135.2,2134.7,3.17558592]
[1773422706626,1.20188736,2135.2,2134.7,4.34776528]
[1773422706809,1.20188736,2135.2,2134.7,4.34666528]
[1773422707014,0.031031,2135.2,2134.7,4.34666528]
[1773422707447,0.031031,2135.2,2134.8,0.0011]
[1773422707651,0.031031,2135.2,2134.8,3.17558592]
[1773422708254,0.031031,2135.2,2134.8,3.17448592]
[1773422708458,0.001,2135.3,2134.9,3.17558592]
[1773422708757,0.031031,2135.6,2135.1,4.34539126]
[1773422708964,0.031031,2135.6,2135.2,1.586]
[1773422709159,4.08166038,2135.8,2135.2,1.586]
[1773422709318,2.79615528,2135.7,2135.3,0.0011]
[1773422709933,4.08166038,2135.8,2135.3,0.0011]
[1773422711951,4.08166038,2135.8,2135.4,1.587]
[1773422712355,2.91109727,2135.6,2134.9,4.34549248]
[1773422712555,2.91109727,2135.3,2134.5,0.0011]
[1773422712724,2.91109727,2135.1,2134.5,0.0011]
[1773422713227,1.1708505,2135.2,2134.6,3.17448592]
[1773422713429,4.08194777,2135.2,2134.6,3.17448592]
[1773422713837,4.08194777,2135.2,2134.8,1.587]
[1773422714449,4.08193374,2135.3,2134.8,1.587]
[1773422714848,4.08193374,2135.3,2134.7,0.0011]
[1773422715039,4.08193374,2135.3,2134.8,1.587]
[1773422716348,2.91109727,2135.2,2134.5,0.0011]
[1773422716552,2.91109727,2135.2,2134.1,0.0011]
[1773422716553,2.91109727,2134.8,2134.1,0.0011]
[1773422716849,1.80011387,2134.9,2133.8,0.0011]
[1773422716850,2.91109727,2134.6,2133.8,0.0011]
[1773422717027,1.17119649,2134.6,2133.9,3.17558592]
[1773422717623,1.17119649,2134.6,2134.0,1.583]
[1773422718259,1.17119649,2134.6,2133.9,0.0011]
[1773422718260,2.91109727,2134.5,2133.9,0.0011]
[1773422718622,2.91109727,2134.5,2133.9,0.04796255]
[1773422718832,2.91109727,2134.5,2133.9,0.0011]
[1773422719048,1.17128935,2134.4,2133.9,0.0011]
[1773422719330,1.17128935,2134.4,2134.2,0.0011]
[1773422719531,4.08238662,2134.4,2133.9,0.0011]
[1773422720562,1.17128935,2134.4,2133.9,0.0011]
[1773422720734,2.91109727,2134.1,2133.7,0.0011]
[1773422720933,4.14924893,2134.4,2133.7,0.0011]
[1773422721268,2.79659775,2134.3,2133.7,0.0011]
[1773422721560,5.77455733,2134.3,2133.7,0.0011]
[1773422721766,2.97795958,2134.4,2133.7,3.02217538]
[1773422721967,2.97795958,2134.4,2133.7,0.0011]
[1773422722989,4.77943771,2134.2,2133.5,0.0011]
[1773422723193,5.77133174,2134.1,2133.5,1.17286988]
[1773422723359,2.97795958,2134.1,2133.5,1.17286988]
[1773422723563,2.97795958,2134.3,2133.6,3.02107538]
[1773422723964,2.97795958,2134.3,2133.5,1.17286988]
[1773422724162,2.97795958,2134.3,2133.5,4.19394526]
[1773422724390,2.97795958,2134.3,2133.6,3.06794452]
[1773422724574,1.17128727,2134.5,2133.6,3.06794452]
[1773422724882,1.17118382,2134.6,2133.6,3.06794452]
[1773422725083,1.17112474,2134.7,2133.8,3.02107538]
[1773422725384,1.17112474,2134.7,2134.0,3.02107538]
[1773422725701,1.17112474,2134.7,2133.5,4.68779447]
[1773422725702,2.97795958,2134.3,2133.5,3.02217538]
[1773422725988,2.97795958,2134.3,2133.5,3.06904671]
[1773422726373,2.97795958,2134.3,2133.5,4.24083009]
[1773422726789,2.97795958,2134.3,2133.5,4.60517538]
[1773422726988,2.97795958,2134.1,2133.5,0.0011]
[1773422727388,2.97795958,2133.5,2132.7,3.02107538]
[1773422727881,2.97795958,2133.5,2132.8,0.04688672]
[1773422728079,2.97795958,2133.5,2132.7,3.02107538]
[1773422728291,2.97795958,2133.5,2132.8,1.585]
[1773422728796,2.97795958,2133.5,2132.9,0.04688452]
[1773422729102,3.02482213,2134.0,2133.1,3.02107538]
[1773422729394,3.02482213,2134.0,2132.8,4.19321667]
[1773422729395,2.97795958,2133.7,2132.8,4.19321667]
[1773422729591,2.97795958,2133.7,2132.9,0.04688452]
[1773422730089,2.97795958,2133.7,2132.8,4.19321667]
[1773422730472,2.97795958,2133.7,2132.9,0.04688452]
[1773422730889,2.97795958,2133.7,2132.7,1.21908393]
[1773422731181,2.97795958,2133.5,2132.7,1.21908393]
[1773422731694,1.17172853,2133.6,2132.8,3.02107538]
[1773422731888,1.17172853,2133.6,2132.9,0.04688452]
[1773422732102,1.17172853,2133.6,2132.9,3.0679599]
[1773422732470,2.97795958,2133.2,2132.3,3.02107538]
[1773422732788,2.97795958,2133.2,2131.4,2.58396594]
[1773422732789,2.97795958,2132.9,2132.2,1.18151709]
[1773422732971,1.17216804,2132.8,2132.2,0.00903337]
[1773422733171,4.15012762,2132.8,2132.2,0.00903337]
[1773422733412,2.97795958,2132.8,2132.6,0.0011]
[1773422733586,4.14999843,2133.1,2132.6,0.0011]
[1773422734367,2.97795958,2133.1,2132.6,0.0011]
[1773422734612,4.14997124,2133.1,2132.6,0.0011]
[1773422735070,4.14987569,2133.3,2132.5,2.52267538]
[1773422735265,0.29230586,2133.4,2132.5,2.52267538]
[1773422735468,0.05859191,2133.4,2132.6,3.04454071]
[1773422735710,0.05858917,2133.5,2132.6,3.04454071]
[1773422735995,0.05858093,2133.8,2132.6,3.04454071]
[1773422736198,0.05858093,2133.8,2132.6,3.02107538]
[1773422736601,2.97795958,2133.8,2132.8,3.02107538]
[1773422736766,3.03654051,2133.8,2132.9,3.04452203]
[1773422737298,0.05858093,2133.8,2133.1,3.02107538]
[1773422737502,1.23020402,2133.8,2133.1,3.02107538]
[1773422737802,4.2081636,2133.8,2133.0,1.17205813]
[1773422738098,1.17167361,2133.7,2133.0,1.17205813]
[1773422738308,0.05858642,2133.6,2132.8,5.78920196]
[1773422739007,3.036546,2133.6,2132.7,2.7681796]
[1773422739227,4.14974303,2133.5,2132.6,1.17223597]
[1773422739510,3.03655149,2133.4,2132.7,1.597]
[1773422740300,3.03655149,2133.4,2132.6,1.17223597]
[1773422740480,3.03655149,2133.4,2132.5,4.19339243]
[1773422740803,1.80147813,2133.3,2132.3,1.17241864]
[1773422740969,3.03655699,2133.2,2132.3,1.17241864]
[1773422741167,3.03655699,2133.2,2132.3,4.19349402]
[1773422741369,4.14996276,2133.1,2132.3,4.19349402]
[1773422741567,4.14996276,2133.1,2132.3,4.1934967]
[1773422741785,0.0586029,2133.0,2132.3,3.02107538]
[1773422742000,0.0586029,2133.0,2132.2,3.76546038]
[1773422742293,0.0586029,2133.0,2132.3,3.0445594]
[1773422743166,1.23049403,2133.3,2132.5,3.02107538]
[1773422743371,4.20845361,2133.3,2132.6,1.17227797]
[1773422744001,4.20845361,2133.3,2132.7,0.02346423]
[1773422744172,4.20845361,2133.3,2132.6,1.17227797]
[1773422744974,4.20845361,2133.3,2132.5,4.19446447]
[1773422745299,0.001,2133.0,2132.5,5.79346447]
[1773422746993,0.001,2133.0,2132.5,4.19446447]
[1773422747194,0.001,2133.0,2132.5,5.79346447]
[1773422747573,0.001,2133.0,2132.5,4.19446447]
[1773422747775,0.001,2133.0,2132.5,1.17341505]
[1773422748085,0.001,2133.0,2132.5,1.6001]
[1773422748295,0.0596029,2133.0,2132.5,2.77242591]
[1773422748796,0.0596029,2133.0,2132.5,1.17342591]
[1773422749003,0.0596029,2133.0,2132.5,2.77342591]
[1773422749503,0.0596029,2133.0,2132.5,5.86489272]
[1773422749704,3.12720535,2133.0,2132.5,1.6011]
[1773422749910,0.001,2133.0,2132.5,2.77342258]
[1773422750897,0.001,2133.0,2132.5,1.17342258]
[1773422751086,0.001,2133.0,2132.3,0.0011]
[1773422751087,2.8259673,2132.9,2132.3,0.0011]
[1773422751285,5.62070584,2132.8,2132.3,1.17354048]
[1773422751482,2.8259673,2132.8,2132.3,0.0011]
[1773422751683,1.172223,2132.7,2132.3,0.0011]
[1773422751998,0.05860565,2132.9,2132.3,2.90259773]
[1773422752188,3.9666816,2133.3,2132.4,2.92600482]
[1773422752389,2.82990485,2133.2,2132.4,2.87910931]
[1773422752596,2.8259673,2133.0,2132.2,1.18150554]
[1773422752811,2.83097291,2132.9,2132.2,1.18150554]
[1773422753111,0.03514142,2132.9,2132.3,0.03634191]
[1773422753610,0.03514142,2133.2,2132.5,1.17233294]
[1773422753920,1.17166276,2133.8,2132.7,2.87910931]
[1773422754282,2.8259673,2133.7,2132.5,1.17233294]
[1773422754515,2.8259673,2133.5,2132.4,4.05145719]
[1773422754716,2.8259673,2133.5,2132.5,1.601]
[1773422755026,2.8259673,2133.5,2132.2,4.69858504]
[1773422755027,2.8259673,2133.1,2132.2,2.78249502]
[1773422755307,2.8259673,2133.4,2132.3,2.92600702]
[1773422755676,3.99784358,2133.4,2132.5,2.87910931]
[1773422756295,2.8259673,2133.3,2132.2,6.99334755]
[1773422756495,2.8259673,2133.1,2132.2,5.66163876]
[1773422757683,3.99802543,2133.0,2132.2,5.66163876]
[1773422758011,2.8259673,2132.9,2132.2,0.00903337]
[1773422758598,2.8259673,2132.9,2132.5,0.0011]
[1773422759705,3.99813534,2132.8,2132.5,0.0011]
[1773422759888,1.17215784,2132.9,2132.5,0.0011]
[1773422761413,2.8259673,2132.8,2132.2,0.01013337]
[1773422761584,2.8259673,2132.6,2132.2,0.01013337]
[1773422761910,2.8259673,2132.4,2132.2,0.01013337]
[1773422762112,2.8259673,2132.4,2132.2,0.0011]
[1773422763095,2.8259673,2132.4,2131.5,4.48310931]
[1773422763288,2.8259673,2132.4,2131.5,1.604]
[1773422763593,2.8259673,2132.0,2130.9,1.17319205]
[1773422763792,2.8259673,2131.8,2131.0,21.17315286]
[1773422764004,2.8259673,2131.8,2131.1,2.87910931]
[1773422764329,2.8259673,2131.7,2131.0,20.0]
[1773422764618,2.8259673,2131.7,2131.0,21.17315183]
[1773422764815,6.23657262,2132.0,2131.1,2.87910931]
[1773422764994,2.8259673,2132.0,2131.2,2.87910931]
[1773422765196,2.8259673,2131.9,2131.0,21.17315183]
[1773422765409,2.8259673,2131.9,2131.0,24.05226114]
[1773422765612,2.8259673,2131.9,2131.1,2.87910931]
[1773422765819,3.99866243,2131.9,2131.2,1.17304804]
[1773422766512,1.17255288,2132.1,2131.2,4.05215735]
[1773422766814,2.79372261,2132.0,2131.3,2.87910931]
[1773422767017,2.8259673,2132.1,2131.2,1.17304804]
[1773422767314,2.8259673,2131.9,2131.0,21.17311817]
[1773422767515,2.8259673,2131.9,2131.1,2.87910931]
[1773422767894,3.99864505,2131.9,2131.2,1.17304804]
[1773422768096,3.99864743,2131.9,2131.2,1.17304804]
[1773422768297,1.17259062,2132.1,2131.3,2.87910931]
[1773422769323,2.8259673,2131.4,2130.2,2.87910931]
[1773422769492,2.8259673,2131.2,2130.3,2.87910931]
[1773422769905,1.17310309,2131.1,2130.4,1.17348854]
[1773422770104,2.8259673,2131.1,2130.3,1.17352201]
[1773422770302,2.8259673,2131.4,2130.3,4.05263132]
[1773422770524,2.8259673,2131.4,2130.4,2.87910931]
[1773422770816,2.8259673,2131.9,2131.2,0.0011]
[1773422771018,2.87288481,2131.9,2131.2,0.0011]
[1773422771411,0.04691751,2131.9,2131.2,0.0011]
[1773422771612,0.001,2132.2,2131.2,2.88020931]
[1773422771919,0.001,2132.2,2131.4,2.87910931]
[1773422772119,0.001,2132.2,2131.5,1.606]
[1773422772419,0.001,2132.2,2131.6,2.87910931]
[1773422772999,0.001,2132.2,2131.6,4.48610931]
[1773422773196,0.001,2132.2,2131.6,4.48710931]
[1773422773901,0.001,2132.2,2131.6,2.87910931]
[1773422774217,0.001,2132.2,2131.4,2.78193388]
[1773422775812,0.001,2132.2,2131.4,5.66104319]
[1773422776324,0.001,2132.2,2131.4,1.17293388]
[1773422776827,0.001,2132.2,2131.4,4.05204319]
[1773422778450,1.17349788,2132.2,2131.4,4.05204319]
[1773422779128,1.17349788,2132.2,2131.4,4.05204487]
[1773422779329,3.99946518,2132.2,2131.2,2.78811125]
[1773422779837,2.8259673,2132.0,2131.0,0.0011]
[1773422780006,5.61651996,2131.9,2130.8,4.05234217]
[1773422780200,2.8259673,2131.9,2131.0,4.05226745]
[1773422780425,4.69037293,2132.1,2131.1,2.87910931]
[1773422780629,4.69037293,2132.1,2131.1,2.88020931]
[1773422781032,3.04063556,2131.9,2131.1,0.0011]
[1773422781920,3.04063556,2131.8,2131.1,0.0011]
[1773422782227,3.04063556,2131.6,2131.1,0.0011]
[1773422782429,3.04063556,2131.6,2130.7,1.6021]
[1773422782632,3.04063556,2131.6,2130.8,0.0011]
[1773422782840,3.04063556,2131.5,2130.8,0.0011]
[1773422783014,3.04063556,2131.3,2130.8,0.0011]
[1773422783755,3.04063556,2131.3,2131.2,0.0011]
[1773422783916,3.04063556,2131.3,2130.7,0.0011]
[1773422784113,1.8066888,2131.6,2130.7,0.0011]
[1773422784114,3.04063556,2131.1,2130.7,0.0022]
[1773422784315,4.21377809,2131.1,2130.7,0.0022]
[1773422784516,1.1730387,2131.3,2130.7,0.0022]
[1773422786213,7.73260759,2131.4,2130.7,0.0022]
[1773422786214,4.21360727,2131.4,2130.7,0.0022]
[1773422786435,3.04063556,2131.3,2130.7,0.0022]
[1773422787749,1.17297171,2131.4,2130.7,0.0022]
[1773422788313,7.73238746,2131.5,2130.7,0.0022]
[1773422788721,4.6917519,2131.5,2130.7,3.07150535]
[1773422789415,4.21336193,2131.8,2130.7,3.07150535]
[1773422789640,2.79300555,2131.7,2130.7,3.07150535]
[1773422790545,1.17282792,2131.6,2130.8,1.17326825]
[1773422790935,1.17266288,2131.9,2130.9,3.06930535]
[1773422791145,2.79408826,2131.8,2130.9,3.07040535]
[1773422791342,2.79408826,2131.8,2131.0,3.06930535]
[1773422791544,1.17266288,2131.9,2131.0,3.06930535]
[1773422791747,1.17266288,2131.9,2130.9,0.0011]
[1773422791748,1.17266288,2131.9,2131.1,3.07040535]
[1773422791946,1.17266288,2131.9,2131.1,3.06930535]
[1773422792119,1.17361966,2132.0,2131.2,0.0011]
[1773422792320,2.79689102,2131.9,2131.2,0.0011]
[1773422792618,1.17266404,2131.9,2131.3,3.06930535]
[1773422793024,1.17266404,2131.9,2131.4,0.0011]
[1773422793725,5.83835266,2131.8,2131.1,1.17305777]
[1773422793919,3.04063556,2131.8,2131.2,0.0011]
[1773422794124,3.04063556,2131.8,2131.1,0.0011]
[1773422794527,1.1727729,2131.7,2131.1,0.0011]
[1773422794753,1.17276182,2131.8,2131.1,3.07040535]
[1773422794926,1.17270812,2131.9,2131.1,3.07040535]
[1773422795523,5.83811998,2131.8,2131.2,0.0011]
[1773422795745,3.04063556,2131.8,2131.2,0.0011]
[1773422796455,3.04063556,2131.8,2131.3,0.0011]
[1773422797249,1.1727729,2131.7,2131.3,0.0011]
[1773422797961,1.1727729,2131.7,2131.0,0.0011]
[1773422797962,3.04063556,2131.5,2131.0,0.0011]
[1773422798128,3.04063556,2131.5,2131.0,0.0022]
[1773422798461,3.04063556,2131.5,2131.0,0.0011]
[1773422798756,2.79813617,2131.4,2131.0,0.0022]
[1773422799048,5.83877173,2131.4,2131.0,0.0022]
[1773422799235,3.04063556,2131.4,2131.0,0.0022]
[1773422799430,4.21362856,2131.3,2131.0,0.0022]
[1773422800426,4.21362856,2131.3,2131.0,0.0011]
[1773422800662,1.172993,2131.3,2131.0,0.0022]
[1773422801545,3.04063556,2131.4,2131.0,0.0022]
[1773422802345,1.17282792,2131.6,2131.0,0.0022]
[1773422802545,5.83898405,2131.5,2131.0,0.0022]
[1773422802740,2.79834849,2131.4,2131.0,0.0022]
[1773422803950,1.172993,2131.3,2131.0,0.0022]
[1773422805830,3.04687002,2131.2,2130.7,0.0011]
[1773422806029,7.02091928,2131.1,2130.7,0.0011]
[1773422806230,2.80189877,2131.0,2130.7,0.0011]
[1773422807761,4.69241236,2131.2,2130.7,0.0011]
[1773422807762,1.17306788,2131.2,2130.7,0.0011]
[1773422807964,1.17303723,2131.3,2131.0,0.0011]
[1773422808160,2.80281702,2131.2,2131.0,0.0011]
[1773422808657,1.17288294,2131.5,2131.0,0.0011]
[1773422808828,2.80352171,2131.4,2131.0,3.24296927]
[1773422809031,1.17381575,2131.7,2131.0,3.24296927]
[1773422809232,2.8033902,2131.6,2131.0,3.24296927]
[1773422809431,2.8033902,2131.5,2131.0,0.0011]
[1773422809631,2.8033902,2131.4,2131.0,0.0011]
[1773422809836,4.22068577,2131.7,2131.0,0.0011]
[1773422810055,2.80437263,2131.6,2131.0,0.0011]
[1773422810358,2.80437263,2131.6,2131.0,3.24296927]
[1773422810861,0.001,2131.7,2131.0,3.24296927]
[1773422811559,2.8049483,2131.7,2131.0,3.24296927]
[1773422811756,3.97772785,2131.7,2131.0,3.24296927]
[1773422812062,3.97679798,2131.6,2131.1,1.17310309]
[1773422812362,1.17284968,2131.6,2131.1,1.17310309]
[1773422812561,1.17284968,2131.6,2131.0,0.0011]
[1773422812751,3.10907314,2131.4,2131.0,0.0011]
[1773422812930,3.10907314,2131.4,2130.7,0.0011]
[1773422812931,3.10907314,2131.2,2130.7,0.0011]
[1773422813132,3.10907314,2131.0,2130.7,0.0011]
[1773422813361,5.91308253,2130.9,2130.7,0.0011]
[1773422813563,5.91308253,2130.9,2129.9,8.07778027]
[1773422813564,3.10907314,2130.7,2129.7,1.17382002]
[1773422813768,2.80400939,2130.6,2129.7,4.1671896]
[1773422813934,2.80400939,2130.5,2129.7,4.1671896]
[1773422814136,3.10907314,2130.0,2128.9,4.86969702]
[1773422814336,3.10907314,2130.3,2129.0,2.99336958]
[1773422814544,2.79626517,2130.2,2129.0,2.99336958]
[1773422814750,3.28748854,2130.4,2129.0,2.99336958]
[1773422815046,2.79644538,2130.3,2129.0,2.99336958]
[1773422815564,2.79644538,2130.3,2129.2,2.89336958]
[1773422815861,5.90551852,2130.3,2129.2,2.89336958]
[1773422816063,2.79644538,2130.2,2129.2,2.89336958]
[1773422816271,3.10907314,2130.3,2129.3,1.17409477]
[1773422816272,4.28264797,2130.3,2129.3,1.17409477]
[1773422816567,3.10907314,2130.3,2129.3,1.17409477]
[1773422816935,4.2826294,2130.3,2129.3,1.17409477]
[1773422817138,3.10907314,2130.3,2129.3,1.17409477]
[1773422817339,3.10907314,2130.3,2129.3,4.16746435]
[1773422817934,3.10907314,2130.3,2129.4,2.99336958]
[1773422818457,1.17350032,2130.4,2129.5,1.1739845]
[1773422818658,1.4131004,2130.5,2129.5,1.1739845]
[1773422818861,2.79023855,2130.4,2129.5,1.1739845]
[1773422819868,4.52217354,2130.5,2129.5,1.1739845]
[1773422820438,2.78779489,2130.4,2129.6,0.04695717]
[1773422820940,3.10907314,2130.3,2129.7,1.17387425]
[1773422821168,3.10907314,2130.3,2129.1,0.0011]
[1773422821169,3.10907314,2130.0,2129.1,0.0011]
[1773422821345,3.10907314,2129.8,2129.1,0.0011]
[1773422821668,3.10907314,2130.1,2129.2,1.17414991]
[1773422822660,3.10907314,2130.1,2129.2,4.16751949]
[1773422822861,3.10907314,2130.4,2129.2,4.16751949]
[1773422823173,3.10907314,2130.4,2129.3,2.99336958]
[1773422823682,3.10907314,2130.4,2126.9,7.2157856]
[1773422823683,2.84588326,2130.3,2126.9,7.2157856]
[1773422823879,2.84588326,2130.3,2123.6,0.73507178]
[1773422823880,30.0,2124.7,2123.9,13.34687998]
[1773422824080,29.701922,2125.1,2124.0,16.23579174]
[1773422824280,2.22278446,2126.0,2124.7,2.99336958]
[1773422824572,2.22278446,2126.0,2124.9,2.99336958]
[1773422824573,3.63006656,2126.0,2124.9,2.99336958]
[1773422824779,3.63006656,2126.0,2124.3,2.72295228]
[1773422824780,3.63006656,2126.0,2124.7,1.1766367]
[1773422825196,3.63006656,2126.0,2124.4,2.49386958]
[1773422825356,3.63006656,2126.0,2124.8,1.46589166]
[1773422825541,3.63006656,2126.0,2124.7,2.99336958]
[1773422826148,3.53412803,2126.0,2124.7,2.99336958]
[1773422826352,3.39532667,2126.0,2125.3,2.99336958]
[1773422826845,1.5431427,2126.6,2125.5,2.99336958]
[1773422827062,1.5431427,2126.6,2125.6,4.61636958]
[1773422827268,1.5431427,2126.6,2125.7,4.80005838]
[1773422827471,1.5431427,2126.6,2125.8,1.624]
[1773422827985,1.5431427,2126.6,2125.4,4.16961875]
[1773422828275,1.5431427,2126.6,2125.5,1.625]
[1773422828470,1.5431427,2126.6,2125.6,1.626]
[1773422828660,1.5431427,2126.6,2125.4,4.16961875]
[1773422828880,3.10907314,2126.4,2124.5,2.99336958]
[1773422829171,3.10907314,2126.4,2124.9,2.99336958]
[1773422829375,1.29935503,2126.6,2125.0,2.99336958]
[1773422829741,1.29935503,2126.6,2125.3,5.07598958]
[1773422829965,1.29935503,2126.6,2125.3,2.99336958]
[1773422830564,2.47494055,2126.6,2125.3,2.99336958]
[1773422830758,3.10907314,2126.9,2125.3,2.99336958]
[1773422831059,4.28449501,2126.9,2125.4,1.17624917]
[1773422831266,4.28449501,2126.9,2125.5,1.626]
[1773422831748,4.28449501,2126.9,2125.4,1.17624917]
[1773422831949,4.28449501,2126.9,2125.9,0.0011]
[1773422832345,3.10907314,2126.8,2125.9,0.0011]
[1773422832546,3.10907314,2126.6,2125.6,0.0011]
[1773422832745,3.10907314,2126.4,2124.6,2.77369208]
[1773422832972,3.10907314,2126.2,2124.6,1.17669208]
[1773422833147,3.10907314,2126.2,2124.6,2.77469208]
[1773422833350,3.10907314,2126.2,2124.6,5.76806166]
[1773422833674,3.10907314,2126.2,2124.5,4.70676833]
[1773422833675,3.10907314,2125.5,2123.9,17.16460264]
[1773422833971,3.10907314,2125.5,2124.1,2.99336958]
[1773422835413,4.28532231,2125.4,2123.9,14.17128515]
[1773422835583,3.10907314,2125.3,2123.9,14.17128515]
[1773422836122,3.10907314,2125.3,2123.9,12.99420767]
[1773422836288,3.10907314,2125.3,2123.9,14.17123408]
[1773422836880,3.10907314,2125.3,2123.9,15.78723408]
[1773422837297,1.17635987,2125.2,2123.9,14.17123408]
[1773422837497,1.17635987,2125.2,2123.9,15.79023408]
[1773422837903,4.28543301,2125.2,2123.9,14.17123408]
[1773422838404,4.28543301,2125.2,2123.9,15.79323408]
[1773422839014,3.10907314,2125.1,2123.9,1.17702641]
[1773422839181,3.10907314,2125.1,2122.4,2.72295228]
[1773422839182,3.10907314,2123.2,2119.8,2.99336958]
[1773422839387,3.01457337,2123.8,2119.0,2.72295228]
[1773422839388,11.41366001,2120.8,2120.0,1.17924528]
[1773422839593,0.63283325,2121.2,2120.0,2.78824528]
[1773422839793,11.413661,2121.0,2120.0,2.78824528]
[1773422840089,11.413661,2121.4,2120.1,7.877764]
[1773422840279,11.413661,2121.4,2120.0,5.78161486]
[1773422840483,3.10907314,2121.7,2120.1,1.614]
[1773422840484,11.913161,2121.0,2120.1,1.614]
[1773422840684,11.963161,2121.0,2120.2,1.616]
[1773422841127,11.963161,2120.9,2120.3,1.617]
[1773422841426,1.17841152,2121.5,2119.8,9.23930752]
[1773422841619,1.17841152,2121.5,2119.8,5.46451052]
[1773422841926,11.963161,2120.8,2119.8,5.46451052]
[1773422842224,11.963161,2120.7,2119.8,5.46451052]
[1773422842433,11.963161,2120.4,2119.7,1.31397455]
[1773422842727,5.2396083,2121.4,2119.7,1.31399372]
[1773422842913,8.527028,2120.6,2119.7,2.94097596]
[1773422843102,11.963161,2120.8,2119.8,4.209621]
[1773422843296,11.963161,2120.8,2119.9,1.17930091]
[1773422843495,11.963161,2120.5,2119.9,1.17930091]
[1773422843717,11.963161,2120.5,2119.7,4.85217546]
[1773422843924,30.0,2120.0,2119.7,1.31395905]
[1773422844124,6.41817142,2121.3,2119.7,1.31395905]
[1773422844324,1.074937,2120.6,2119.7,1.31395905]
[1773422844630,1.074937,2120.6,2119.7,6.77846957]
[1773422844827,1.074937,2120.6,2120.0,0.0011]
[1773422845629,1.074937,2120.9,2120.0,0.0011]
[1773422847413,1.074937,2120.8,2120.0,0.0011]
[1773422847817,1.17858094,2121.2,2121.0,9.953014]
[1773422848046,1.17856397,2121.3,2121.0,8.93945216]
[1773422848341,6.41809161,2121.4,2121.0,8.93945216]
[1773422848741,6.41809161,2121.4,2120.1,1.649]
[1773422848925,5.2396083,2121.3,2120.0,1.6511]
[1773422849325,4.962,2121.2,2120.0,1.6511]
[1773422849536,5.2396083,2121.3,2120.0,1.6511]
[1773422849749,4.71364413,2121.6,2120.1,1.652]
[1773422849933,5.2396083,2121.5,2120.1,1.652]
[1773422850138,5.2396083,2121.5,2120.1,7.11651052]
[1773422850532,5.2396083,2121.5,2120.2,5.46451052]
[1773422851323,5.2396083,2121.5,2120.3,1.655]
[1773422852646,6.41805979,2121.5,2120.4,1.17902282]
[1773422853346,1.17845149,2121.5,2120.4,1.17902282]
[1773422853565,5.2396083,2121.4,2120.0,1.18031203]
[1773422853922,1.17845149,2121.5,2120.0,6.64482255]
[1773422854146,1.17845149,2121.5,2120.2,5.46451052]
[1773422854547,9.9532543,2121.7,2120.3,1.17907843]
[1773422854748,5.2396083,2121.6,2120.3,1.17907843]
[1773422854944,5.2396083,2121.6,2120.3,2.84007843]
[1773422856243,5.2396083,2121.6,2120.3,1.661]
[1773422856443,5.2396083,2121.6,2120.2,1.17910435]
[1773422856652,6.4180198,2121.5,2120.3,1.663]
[1773422856863,6.4180198,2121.5,2120.3,1.17907702]
[1773422857032,6.4180198,2121.5,2120.3,2.84307702]
[1773422857231,6.4180198,2121.5,2120.3,1.664]
[1773422857756,6.4180198,2121.5,2120.3,2.84307264]
[1773422859243,5.2396083,2121.3,2120.2,0.0011]
[1773422859964,5.2396083,2121.2,2120.2,0.0011]
[1773422860865,1.17863372,2121.1,2120.2,0.0011]
[1773422861475,0.00458401,2121.0,2120.2,0.0011]
[1773422862170,1.15972572,2121.1,2120.2,0.0011]
[1773422862478,6.39933402,2121.1,2120.2,0.0011]
[1773422863400,1.15972572,2121.1,2120.2,0.0011]
[1773422864575,6.39933402,2121.1,2120.2,0.0011]
[1773422864987,1.17864784,2121.1,2120.2,0.0011]
[1773422865285,1.17846705,2121.4,2120.2,5.74665448]
[1773422867374,5.94767006,2121.6,2120.2,6.9257525]
[1773422867554,5.94767006,2121.6,2120.3,1.669]
[1773422867751,5.94767006,2121.6,2120.2,6.9257525]
[1773422867958,5.94767006,2121.6,2120.2,0.0011]
[1773422868689,5.94767006,2121.4,2120.2,0.0011]
[1773422869285,7.12619266,2121.3,2120.2,1.2911]
[1773422870884,7.12719266,2121.3,2120.2,1.2911]
[1773422871069,7.12719266,2121.3,2120.3,1.669]
[1773422871962,7.12719266,2121.3,2120.3,2.84807409]
[1773422872991,1.1795226,2121.3,2120.3,8.47659006]
[1773422873960,0.001,2121.3,2120.3,8.47659006]
[1773422874292,0.001,2121.3,2120.4,5.62851597]
[1773422875888,0.001,2121.3,2120.4,6.80753342]
[1773422876111,1.1784115,2121.5,2120.8,1.82384667]
[1773422876486,1.1784115,2121.5,2120.6,5.62851597]
[1773422877512,1.1784115,2121.5,2120.7,7.29551597]
[1773422878514,4.71299292,2121.8,2120.8,1.17880045]
[1773422879786,5.97570222,2121.7,2120.3,5.62851597]
[1773422880010,5.97570222,2121.7,2120.4,1.666]
[1773422880586,1.82384667,2121.0,2120.2,1.2911]
[1773422880811,5.97570222,2120.9,2120.2,1.2911]
[1773422881115,5.97570222,2120.9,2120.0,0.0011]
[1773422882188,5.97570222,2121.1,2120.0,1.6661]
[1773422882797,5.97570222,2120.9,2120.0,0.0011]
[1773422883809,5.97570222,2120.9,2120.4,0.0011]
[1773422884197,5.97570222,2120.9,2120.0,0.0011]
[1773422884793,5.97570222,2120.9,2120.1,0.0011]
[1773422884993,1.17880045,2120.8,2120.1,0.0011]
[1773422885928,7.15450267,2120.8,2120.1,0.0011]
[1773422886715,7.15433594,2121.1,2120.1,0.0011]
[1773422887814,7.15433594,2121.1,2120.1,5.62961597]
[1773422888202,7.15433594,2121.1,2120.1,0.0011]
[1773422888600,1.17863372,2121.1,2120.1,5.62961597]
[1773422890524,5.97570222,2121.0,2120.1,0.0011]
[1773422892363,5.97570222,2120.9,2120.0,0.0011]
[1773422892524,5.97570222,2120.7,2120.0,0.0011]